{"text_format":"1","workbook":"xlsx","n_sheets":4,"sheets":["BD","recap","Guide 1","EXTRACTION"],"not_rendered":{"charts":0,"images":5,"macros":1,"external_links":0,"defined_names":5,"comments":0,"pivot_tables":0},"unopened":[],"bounds":{"document_bytes":16777216,"sheet_cells":100000,"rows_first":2000,"rows_last":500,"rows_between":2000,"halvings":0,"cell_chars":16384,"cell_head_chars":4096},"cells_cut":0,"cells_raw":0,"read":"whole","date_system":"1900"}

{"sheet":"BD","index":0,"n_rows":112,"n_cols":10,"rows_kept":112,"cut":false,"hidden":false,"merged":[]}
["Domaine","Type","Micromodule","Libellé","Rôle","prix","Référence"]
["Eclairages","Récepteur",5610,"TYXIA 5610","Récepteur 1 voies éclairage marche/arrêt","00050000507",6351400,"image6","Buanderie","Villa"]
["Eclairages","Récepteur",5612,"TYXIA 5612","Récepteur 2 voies éclairage marche/arrêt","00050000448",6351906,"image5","Chambre 1","Hotel"]
["Eclairages","Emetteur",2600,"TYXIA 2600","Emetteur multifonction pour éclairage","00050000506",6351399,"image7","Chambre 2","Bureaux"]
["Eclairages","Emetteur",2700,"TYXIA 2700","Emetteur 230v 2 voies multifonctions","00050351096",6351096,"image8","Chambre 3","Administration"]
["Eclairages","Pack",501,"PACK TYXIA 501","Pack éclairage marche/arrêt avec 2 interrupteurs sans fil","00050000472",6351407,"image9","Chambre 4","Mairie"]
["Eclairages","Pack",511,"PACK TYXIA 511","Pack 2 d'interrupteurs pour éclairage connecté","00050000473",6351408,"image10","Couloir","Ecole"]
["Eclairages","Récepteur",5640,"TYXIA 5640","Variateur d'éclairage Phase/Neutre connecté","00050000478",6351413,"image11","Cuisine"]
["Eclairages","Récepteur",5650,"TYXIA 5650","Variateur d'éclairage Phase sans neutre connecté","00050000295",6351414,"image12","Garage","Rénovation"]
["Eclairages","Pack",610,"TYXIA 611","Pack éclairage avec 2 interrupteurs supplémentaire sans fil","00050000475",6351410,"image13","Hall","Neuf"]
["Eclairages","Récepteur",4811,"TYXIA 4811","Récepteur 10 Ampères marche/arrêt + minuterie","00050351107",6351107,"image14","Salle de Bain 1"]
["Eclairages","Récepteur",4801,"TYXIA 4801","Récepteur sortie contact sec 10 A marche/arrêt + minuterie X3D","00050351110",6351110,"image15","Salle de Bain 2"]
["Eclairages","Récepteur Modulaire",4910,"TYXIA 4910","Récepteur modulaire pour éclairage connecté","00050000356",6351386,"image16","Salon"]
["Eclairages","Récepteur",6610,"TYXIA 6610","Interrupteur connecté pour pilotage de lampe d'appoint","00050000270",6351376,"image17","Séjour"]
["Eclairages","Emetteur",2310,"TYXIA 2310","Interrupteur sans fil pour éclairages","00050351380",6351380,"image18","Terrasse"]
["Eclairages","Emetteur",1410,"TYXIA 1410","Télécommande pour automatismes et éclairages extérieurs","00050000350",6351389,"image19","WC 1"]
["Eclairages","Récepteur Modulaire",4940,"TYXIA 4940","Récepteur modulaire pour faire varier l'éclairage","00050000357",6351387,"image20","WC 2"]
["Eclairages","Emetteur",1700,"TYXIA 1700","Télécommande pour volets roulants et éclairages","00050000466",6351403,"image21","Exterieur"]
["Alarme","Pack","Acces","TYXAL+ Acces","Pack 2 Zones sans fil","00050000443",6410186,"image22"]
["Alarme","Pack","Tyxal +","Pack Tyxal +","Pack Alarme 8 Zones avec Box Domotique","00050000394",6410177,"image23"]
["Alarme","Pack","Tyxal+ Video","Pack Tyxal+  Video","Pack Alarme avec Transmetteurs GSM et Détecteur Vidéo","00050000395",6410178,"image24"]
["Alarme","Pack","Tydom","Pack Tidom Video","Pack Transmetteur domotique 2.0 et Détecteur Vidéo","00050000331",6410173,"image25"]
["Alarme","Commander","CLT8000","Tyxal CLT 8000","Clavier Radio avec Ecran Tactile","00050413252",6413252,"image26"]
["Alarme","Commander","LB2000","Tyxal LB 2000","Lecteur de Badges Radio","00050413254",6413254,"image27"]
["Alarme","Commander","CLS8000","TYXAL CLS 8000","Clavier Radio à touches","00050413253",6413253,"image28"]
["Alarme","Commander","CLE8000","TYXAL CLE 8000","Clavier Radio extérieur à touches","00050000341",6413255,"image29"]
["Alarme","Commander","TL2000","TYXAL TL 2000","Télécommande Radio pour Alarmes et Automatismes","00050413251",6413251,"image30"]
["Alarme","Commander","TYDOM 1.0","Box TYDOM 1.0","Box Domotique Tydom 1.0","00050000363",6700103,"image31"]
["Alarme","Détecter","DMB","DMB TYXAL","Détecteur de mouvement Bi-Lentille Radio","00050412286",6412286,"image32"]
["Alarme","Détecter","DMDR","DMDR TYXAL","Détecteur Rideau Extérieur","00050000413",6412317,"image33"]
["Alarme","Détecter","DMBV","DMBV TYXAL","Détecteur de mouvement Bi-Lentille Vidéo Radio","00050412287",6412287,"image34"]
["Alarme","Détecter","DMBD","DMBD TYXAL","Détecteur de mouvement Bi-Lentille Double Technologie Radio","00050000339",6412311,"image35"]
["Alarme","Détecter","DME","DME TYXAL","Détecteur Extérieur Radio","00050000337",6412309,"image36"]
["Alarme","Détecter","DO BL","DO BL TYXAL","Détecteur d'Ouverture BLANC Radio","00050412288",6412288,"image37"]
["Alarme","Détecter","DO BR","DO BR TYXAL","Détecteur d'Ouverture BRUN Radio","00050412295",6412295,"image38"]
["Alarme","Détecter","DO GR","DO GR TYXAL","Détecteur d'Ouverture GRIS Radio","00050412296",6412296,"image39"]
["Alarme","Détecter","MDO BL","MDO BL TYXAL","Mico Détecteur d'Ouverture BLANC Radio","00050000321",6412305,"image40"]
["Alarme","Détecter","MDO BR","MDO BR TYXAL","Micro Détecteur d'Ouverture BRUN Radio","00050000322",6412306,"image41"]
["Alarme","Détecter","DOS","DOS TYXAL","Détecteur d'ouverture Contact de Sol Radio","00050000324",6412300,"image42"]
["Alarme","Signaler","SI","SI TYXAL","Sirène Radio Intérieure","00050415220",6415220,"image43"]
["Alarme","Signaler","SEF","SEF TYXAL","Sirène Radio Extérieure avec Flash","00050415221",6415221,"image44"]
["Alarme","Communiquer","TTGSM","TTGSM TYXAL","Transmetteur GSM Radio","00050414117",6414117,"image45"]
["Alarme","Communiquer","TTRTC","TTRTC TYXAL","Transmetteur RTC Radio","00050414116",6414116,"image46"]
[]
["Consommation","Indicateur",2000,"TYWATT 2000","Indicateur de conso d'énergie + Gestion des Occultants","00050110027",6110027,"image47"]
["Consommation","Indicateur",1000,"TYWATT 1000","Indicateur de conso d'énergie avec 3 TI","00050110026",6110026,"image48"]
["Consommation","Emetteur",5100,"TYWATT 5100","Emetteur d'impulsions pour compteur Gaz, eau et calories","00050110029",6110029,"image49"]
["Consommation","Passerelle",5500,"TYWATT 5500","Passerelle OMS/X3D","00050000451",6110040,"image50"]
["Consommation","Emetteur","EMIC","IC","Emetteur Info Consommation pour PAC","00050110032",6110032,"image51"]
["Consommation","Emetteur",5300,"TYWATT 5300","Emetteur Débimètre eau chaude pour Tybox 2000 WT","00050110028",6110028,"image52"]
["Consommation","Module","TRI RT","TYWATT TRI RT","Module de consammation en tri pour Calibox et Tybox","00050110036",6110036,"image53"]
["Consommation","TI","TIO 60","TIO 60 Ouvert","TI supplementaire","00050301038",6301037,"image54"]
["Consommation","TI","TIO 61","TIO 60 Fermé","TI supplementaire","00050301039",6301038,"image55"]
["Consommation","Indicateur",30,"TYWATT 30","Indicateur de consommations modulaire MONO","00050110002",6110002,"image56"]
["Consommation","Indicateur","TRI RT","TYWATT TRI","Indicateur de consommations modulaire TRI","00050110010",6110010,"image57"]
["Consommation","TI","TIF","TIF 60","Transformateur d'intensité TIF 60 pour gestionnaires RT2012","00050301039",6301038,"image58"]
["Consommation","TI","TI ","TIF Supp","Transformateur d'intensité TI suppl pour TYWAAT 30/TRI","00050330004",6330004,"image59"]
[]
["Ouvrants","Pack",641,"TYXIA 641 CONNECT","Pack volets roulants et lampes connectés",null,6351411]
["Ouvrants","Pack",541,"TYXIA541","Pack centralisation de volets roulants ",null,6351409]
["Ouvrants","Pack",631,"Tyxia631","Pack pilotage de BSO,store banne,store lamelles",null,6351415]
["Ouvrants","Recepteur",5630,"Tyxia5630","Recepteurs pour volet roulant",null,6351401]
["Ouvrants","Recepteur",5730,"Tyxia5730","Recepteurs pour volet roulant",null,6351402]
["Ouvrants","Recepteur ",5731,"Tyxia5731","Recepteur pilotage de BSO,store banne,store lamelles",null,6351412]
["Ouvrants","Recepteur",4620,"Tyxia4620","Recepteur contact sec impulsionnel TBTS",null,6351104]
["Ouvrants","Recepteur",6410,"Tyxia6410","Recepteur contact sec impulsionnel ou maintenu,en saillie",null,6351180]
["Ouvrants","Emetteur",2600,"Tyxia2600","Emetteur pile 2 voies multifonction ",null,6351399]
["Ouvrants","Emetteur",2700,"Tyxia2700","Emetteur alimente 230 V 2 voies multifonctions",null,6351096]
["Ouvrants","Telecommandes",1703,"Tyxia1703","Telecommandes 1 canal pour volet roulant ou BSO",null,6351404]
["Ouvrants","Telecommandes",1705,"Tyxia1705","Telecommandes 1 canal pour volet roulant ou BSO",null,6351405]
["Ouvrants","Telecommandes",1700,"Tyxia1700","Telecommandes de groupe",null,6351403]
["Ouvrants","Telecommandes",1712,"Tyxia1712","Telecommandes de groupe",null,6351406]
["Ouvrants","Telecommandes",1400,"Tyxia1400","Telecommandes porte-clés",null,6351388]
["Ouvrants","Telecommandes",1410,"Tyxia1410","Telecommandes porte-clés",null,6351389]
["Ouvrants","Interrupteurs",2310,"Tyxia2310","Interrupteurs émetteurs",null,6351380]
["Ouvrants","Interrupteurs",2330,"Tyxia2330","Interrupteurs émetteurs",null,6351379]
["Ouvrants","Recepteur",3730,"Tyxia3730"," Recepteur filaires pour volets roulants",null,6351430]
["Ouvrants","Recepteur","3CNT","Tyxia3CNT","Recepteur filaires pour volets roulants",null,6351431]
[]
[]
[]
[]
[]
[null,null,null,null,null,70,"VC20-P14"]
[null,null,null,null,null,71,"VC20-P17"]
[null,null,null,null,null,72,"VC20-P18"]
[null,null,null,null,null,73,"VB6-P1"]
[null,null,null,null,null,74,"VB6-P3"]
[null,null,null,null,null,75,"VB6-P8"]
[null,null,null,null,null,76,"VB6-P9"]
[null,null,null,null,null,77,"VB6-P11"]
[null,null,null,null,null,78,"VB6-P12"]
[null,null,null,null,null,79,"VB6-P13"]
[null,null,null,null,null,80,"VB6-P14"]
[null,null,null,null,null,81,"VB6-P17"]
[null,null,null,null,null,82,"VB12-P1"]
[null,null,null,null,null,83,"VB12-P3"]
[null,null,null,null,null,84,"VB12-P8"]
[null,null,null,null,null,85,"VB12-P9"]
[null,null,null,null,null,86,"VB12-P11"]
[null,null,null,null,null,87,"VB12-P12"]
[null,null,null,null,null,88,"VB12-P13"]
[null,null,null,null,null,89,"VB12-P14"]
[null,null,null,null,null,90,"VB12-P17"]
[null,null,null,null,null,91,"VB20-P3"]
[null,null,null,null,null,92,"VB20-P8"]
[null,null,null,null,null,93,"VB20-P9"]
[null,null,null,null,null,94,"VB20-P11"]
[null,null,null,null,null,95,"VB20-P12"]
[null,null,null,null,null,96,"VB20-P13"]
[null,null,null,null,null,97,"VB20-P14"]
[null,null,null,null,null,98,"VB20-P17"]

{"sheet":"recap","index":1,"n_rows":13,"n_cols":7,"rows_kept":13,"cut":false,"hidden":false,"merged":[[6,4,6,6],[3,4,4,6],[12,5,12,6],[8,1,8,2],[9,1,9,2],[10,1,10,2],[2,4,2,6],[5,4,5,6],[0,0,0,6],[2,0,2,2],[4,0,4,2]]}
["DEVIS DOMOTIQUE DELTADORE"]
[]
["Fournisseur",null,null,null,"Nom du  Client"]
[null,null,null,null,""]
[""]
[null,null,null,null,"Compte du Client"]
[null,null,null,null,""]
[]
["Nom du Chantier",""]
["Infos Chantier",""]
["Type de Chantier","",null,null,"Imprimer","Importer vers Movex","Formulaire"]
[]
["Pièces","Références","Micromodules","Désignations","Qts","Ref MOVEX"]

{"sheet":"Guide 1","index":2,"n_rows":12,"n_cols":11,"rows_kept":12,"cut":false,"hidden":true,"merged":[[6,0,9,0],[3,0,4,0],[1,4,1,6],[1,8,1,9],[0,2,0,7],[0,8,0,10]]}
[null,null,"Eclairages ON / OFF",null,null,null,null,null,"Eclairage Dimmable"]
["X   Compatible                        0   Compatible mais pas en variation",null,"Récepteur M/A Lampe de Chevet","Récepteur M/A pour Tableau","Récepteurs M/A Encastrables",null,null,"Récepteur M/A Saillie","Récepteur à variations",null,"Récepteur  variation Modulaire"]
[null,null,"TYXIA 6610","TYXIA 4910","TYXIA 5610  TYXIA 5612","TYXIA 4600","TYXIA 4801  TYXIA 4811","TYXIA 6410","TYXIA 5640  TYXIA 5650","TYXIA 4840  TYXIA 4850","TYXIA 4940"]
["Emetteurs Radio","TYXIA 2600","x","x","x","x","x","x","x","x","x"]
[null,"TYXIA 2700","x","x","x","x","x","x","x","x","x"]
["Interrupteur Emetteur Radio","TYXIA 2310","x","x","x","x","x","x","x","x","x"]
["Télécommandes","TYXIA 1700","x","x","x","x","x","x","x","x","x"]
[null,"TYXIA 1712","x","x","x","x","x","x",0,0,0]
[null,"TYXIA 1410","x","x","x","x","x","x",0,0,0]
[null,"TYXIA 1400","x","x","x","x","x","x","x","x","x"]
["Détecteur Radio","DO/MDO TYXAL","x","x","x","x","x","x",0,0,0]
["PASSERELLE IP","TYDOM 1,0","x","x","x","x","x","x","x","x","x"]

{"sheet":"EXTRACTION","index":3,"n_rows":100,"n_cols":4,"rows_kept":100,"cut":false,"hidden":false,"merged":[]}
["ligne","ref","qtes","Marque"]
[1,{"$f":"recap!F14","v":0},{"$f":"recap!E14","v":0},"DELTADORE"]
[2,{"$f":"recap!F15","v":0},{"$f":"recap!E15","v":0},"DELTADORE"]
[3,{"$f":"recap!F16","v":0},{"$f":"recap!E16","v":0},"DELTADORE"]
[4,{"$f":"recap!F17","v":0},{"$f":"recap!E17","v":0},"DELTADORE"]
[5,{"$f":"recap!F18","v":0},{"$f":"recap!E18","v":0},"DELTADORE"]
[6,{"$f":"recap!F19","v":0},{"$f":"recap!E19","v":0},"DELTADORE"]
[7,{"$f":"recap!F20","v":0},{"$f":"recap!E20","v":0},"DELTADORE"]
[8,{"$f":"recap!F21","v":0},{"$f":"recap!E21","v":0},"DELTADORE"]
[9,{"$f":"recap!F22","v":0},{"$f":"recap!E22","v":0},"DELTADORE"]
[10,{"$f":"recap!F23","v":0},{"$f":"recap!E23","v":0},"DELTADORE"]
[11,{"$f":"recap!F24","v":0},{"$f":"recap!E24","v":0},"DELTADORE"]
[12,{"$f":"recap!F25","v":0},{"$f":"recap!E25","v":0},"DELTADORE"]
[13,{"$f":"recap!F26","v":0},{"$f":"recap!E26","v":0},"DELTADORE"]
[14,{"$f":"recap!F27","v":0},{"$f":"recap!E27","v":0},"DELTADORE"]
[15,{"$f":"recap!F28","v":0},{"$f":"recap!E28","v":0},"DELTADORE"]
[16,{"$f":"recap!F29","v":0},{"$f":"recap!E29","v":0},"DELTADORE"]
[17,{"$f":"recap!F30","v":0},{"$f":"recap!E30","v":0},"DELTADORE"]
[18,{"$f":"recap!F31","v":0},{"$f":"recap!E31","v":0},"DELTADORE"]
[19,{"$f":"recap!F32","v":0},{"$f":"recap!E32","v":0},"DELTADORE"]
[20,{"$f":"recap!F33","v":0},{"$f":"recap!E33","v":0},"DELTADORE"]
[21,{"$f":"recap!F34","v":0},{"$f":"recap!E34","v":0},"DELTADORE"]
[22,{"$f":"recap!F35","v":0},{"$f":"recap!E35","v":0},"DELTADORE"]
[23,{"$f":"recap!F36","v":0},{"$f":"recap!E36","v":0},"DELTADORE"]
[24,{"$f":"recap!F37","v":0},{"$f":"recap!E37","v":0},"DELTADORE"]
[25,{"$f":"recap!F38","v":0},{"$f":"recap!E38","v":0},"DELTADORE"]
[26,{"$f":"recap!F39","v":0},{"$f":"recap!E39","v":0},"DELTADORE"]
[27,{"$f":"recap!F40","v":0},{"$f":"recap!E40","v":0},"DELTADORE"]
[28,{"$f":"recap!F41","v":0},{"$f":"recap!E41","v":0},"DELTADORE"]
[29,{"$f":"recap!F42","v":0},{"$f":"recap!E42","v":0},"DELTADORE"]
[30,{"$f":"recap!F43","v":0},{"$f":"recap!E43","v":0},"DELTADORE"]
[31,{"$f":"recap!F44","v":0},{"$f":"recap!E44","v":0},"DELTADORE"]
[32,{"$f":"recap!F45","v":0},{"$f":"recap!E45","v":0},"DELTADORE"]
[33,{"$f":"recap!F46","v":0},{"$f":"recap!E46","v":0},"DELTADORE"]
[34,{"$f":"recap!F47","v":0},{"$f":"recap!E47","v":0},"DELTADORE"]
[35,{"$f":"recap!F48","v":0},{"$f":"recap!E48","v":0},"DELTADORE"]
[36,{"$f":"recap!F49","v":0},{"$f":"recap!E49","v":0},"DELTADORE"]
[37,{"$f":"recap!F50","v":0},{"$f":"recap!E50","v":0},"DELTADORE"]
[38,{"$f":"recap!F51","v":0},{"$f":"recap!E51","v":0},"DELTADORE"]
[39,{"$f":"recap!F52","v":0},{"$f":"recap!E52","v":0},"DELTADORE"]
[40,{"$f":"recap!F53","v":0},{"$f":"recap!E53","v":0},"DELTADORE"]
[41,{"$f":"recap!F54","v":0},{"$f":"recap!E54","v":0},"DELTADORE"]
[42,{"$f":"recap!F55","v":0},{"$f":"recap!E55","v":0},"DELTADORE"]
[43,{"$f":"recap!F56","v":0},{"$f":"recap!E56","v":0},"DELTADORE"]
[44,{"$f":"recap!F57","v":0},{"$f":"recap!E57","v":0},"DELTADORE"]
[45,{"$f":"recap!F58","v":0},{"$f":"recap!E58","v":0},"DELTADORE"]
[46,{"$f":"recap!F59","v":0},{"$f":"recap!E59","v":0},"DELTADORE"]
[47,{"$f":"recap!F60","v":0},{"$f":"recap!E60","v":0},"DELTADORE"]
[48,{"$f":"recap!F61","v":0},{"$f":"recap!E61","v":0},"DELTADORE"]
[49,{"$f":"recap!F62","v":0},{"$f":"recap!E62","v":0},"DELTADORE"]
[50,{"$f":"recap!F63","v":0},{"$f":"recap!E63","v":0},"DELTADORE"]
[51,{"$f":"recap!F64","v":0},{"$f":"recap!E64","v":0},"DELTADORE"]
[52,{"$f":"recap!F65","v":0},{"$f":"recap!E65","v":0},"DELTADORE"]
[53,{"$f":"recap!F66","v":0},{"$f":"recap!E66","v":0},"DELTADORE"]
[54,{"$f":"recap!F67","v":0},{"$f":"recap!E67","v":0},"DELTADORE"]
[55,{"$f":"recap!F68","v":0},{"$f":"recap!E68","v":0},"DELTADORE"]
[56,{"$f":"recap!F69","v":0},{"$f":"recap!E69","v":0},"DELTADORE"]
[57,{"$f":"recap!F70","v":0},{"$f":"recap!E70","v":0},"DELTADORE"]
[58,{"$f":"recap!F71","v":0},{"$f":"recap!E71","v":0},"DELTADORE"]
[59,{"$f":"recap!F72","v":0},{"$f":"recap!E72","v":0},"DELTADORE"]
[60,{"$f":"recap!F73","v":0},{"$f":"recap!E73","v":0},"DELTADORE"]
[61,{"$f":"recap!F74","v":0},{"$f":"recap!E74","v":0},"DELTADORE"]
[62,{"$f":"recap!F75","v":0},{"$f":"recap!E75","v":0},"DELTADORE"]
[63,{"$f":"recap!F76","v":0},{"$f":"recap!E76","v":0},"DELTADORE"]
[64,{"$f":"recap!F77","v":0},{"$f":"recap!E77","v":0},"DELTADORE"]
[65,{"$f":"recap!F78","v":0},{"$f":"recap!E78","v":0},"DELTADORE"]
[66,{"$f":"recap!F79","v":0},{"$f":"recap!E79","v":0},"DELTADORE"]
[67,{"$f":"recap!F80","v":0},{"$f":"recap!E80","v":0},"DELTADORE"]
[68,{"$f":"recap!F81","v":0},{"$f":"recap!E81","v":0},"DELTADORE"]
[69,{"$f":"recap!F82","v":0},{"$f":"recap!E82","v":0},"DELTADORE"]
[70,{"$f":"recap!F83","v":0},{"$f":"recap!E83","v":0},"DELTADORE"]
[71,{"$f":"recap!F84","v":0},{"$f":"recap!E84","v":0},"DELTADORE"]
[72,{"$f":"recap!F85","v":0},{"$f":"recap!E85","v":0},"DELTADORE"]
[73,{"$f":"recap!F86","v":0},{"$f":"recap!E86","v":0},"DELTADORE"]
[74,{"$f":"recap!F87","v":0},{"$f":"recap!E87","v":0},"DELTADORE"]
[75,{"$f":"recap!F88","v":0},{"$f":"recap!E88","v":0},"DELTADORE"]
[76,{"$f":"recap!F89","v":0},{"$f":"recap!E89","v":0},"DELTADORE"]
[77,{"$f":"recap!F90","v":0},{"$f":"recap!E90","v":0},"DELTADORE"]
[78,{"$f":"recap!F91","v":0},{"$f":"recap!E91","v":0},"DELTADORE"]
[79,{"$f":"recap!F92","v":0},{"$f":"recap!E92","v":0},"DELTADORE"]
[80,{"$f":"recap!F93","v":0},{"$f":"recap!E93","v":0},"DELTADORE"]
[81,{"$f":"recap!F94","v":0},{"$f":"recap!E94","v":0},"DELTADORE"]
[82,{"$f":"recap!F95","v":0},{"$f":"recap!E95","v":0},"DELTADORE"]
[83,{"$f":"recap!F96","v":0},{"$f":"recap!E96","v":0},"DELTADORE"]
[84,{"$f":"recap!F97","v":0},{"$f":"recap!E97","v":0},"DELTADORE"]
[85,{"$f":"recap!F98","v":0},{"$f":"recap!E98","v":0},"DELTADORE"]
[86,{"$f":"recap!F99","v":0},{"$f":"recap!E99","v":0},"DELTADORE"]
[87,{"$f":"recap!F100","v":0},{"$f":"recap!E100","v":0},"DELTADORE"]
[88,{"$f":"recap!F101","v":0},{"$f":"recap!E101","v":0},"DELTADORE"]
[89,{"$f":"recap!F102","v":0},{"$f":"recap!E102","v":0},"DELTADORE"]
[90,{"$f":"recap!F103","v":0},{"$f":"recap!E103","v":0},"DELTADORE"]
[91,{"$f":"recap!F104","v":0},{"$f":"recap!E104","v":0},"DELTADORE"]
[92,{"$f":"recap!F105","v":0},{"$f":"recap!E105","v":0},"DELTADORE"]
[93,{"$f":"recap!F106","v":0},{"$f":"recap!E106","v":0},"DELTADORE"]
[94,{"$f":"recap!F107","v":0},{"$f":"recap!E107","v":0},"DELTADORE"]
[95,{"$f":"recap!F108","v":0},{"$f":"recap!E108","v":0},"DELTADORE"]
[96,{"$f":"recap!F109","v":0},{"$f":"recap!E109","v":0},"DELTADORE"]
[97,{"$f":"recap!F110","v":0},{"$f":"recap!E110","v":0},"DELTADORE"]
[98,{"$f":"recap!F111","v":0},{"$f":"recap!E111","v":0},"DELTADORE"]
[99,{"$f":"recap!F112","v":0},{"$f":"recap!E112","v":0},"DELTADORE"]